fUST/lending_fUST_20251203
["ID","MTS","AMOUNT","RATE_DAILY","PERIOD"]
[396058826,1764751831797,-550.0,0.00017881,2]
[396058828,1764751831807,-300.0,0.00017881,2]
[396058830,1764751831817,-10000.0,0.00017882,2]
[396058831,1764751831826,-238753.42688544,0.00017885,2]
[396058832,1764751831835,-167.03666407,0.00017983,2]
[396058833,1764751831849,-500.0,0.00017983,2]
[396058834,1764751831859,-193.8829079,0.00017983,2]
[396058835,1764751831869,-500.0,0.00017983,2]
[396058836,1764751831878,-500.0,0.00017983,2]
[396058837,1764751831888,-394.43020448,0.00017983,2]
[396058838,1764751831897,-500.0,0.00017983,2]
[396058839,1764751831907,-572.51641783,0.00017983,2]
[396058840,1764751831921,-572.51641783,0.00017983,2]
[396058841,1764751831930,-572.51641783,0.00017983,2]
[396058842,1764751831941,-572.51641783,0.00017983,2]
[396058843,1764751831951,-572.51641783,0.00017983,2]
[396058844,1764751831962,-572.51641783,0.00017983,2]
[396058845,1764751831971,-572.51641783,0.00017983,2]
[396058846,1764751831981,-572.51641783,0.00017983,2]
[396058847,1764751831990,-572.51641783,0.00017983,2]
[396058848,1764751832002,-572.51641783,0.00017983,2]
[396058849,1764751832012,-572.51641783,0.00017983,2]
[396058850,1764751832021,-572.51641783,0.00017983,2]
[396058851,1764751832031,-572.51641783,0.00017983,2]
[396058852,1764751832041,-572.51641783,0.00017983,2]
[396058853,1764751832050,-572.51641783,0.00017983,2]
[396058855,1764751832060,-572.51641783,0.00017983,2]
[396058856,1764751832069,-572.51641783,0.00017983,2]
[396058857,1764751832078,-572.51641783,0.00017983,2]
[396058858,1764751832087,-572.51641783,0.00017983,2]
[396058859,1764751832096,-572.51641783,0.00017983,2]
[396058860,1764751832106,-503.54101616,0.00017983,2]
[396058861,1764751832116,-572.51641783,0.00017983,2]
[396058862,1764751832125,-572.51641783,0.00017983,2]
[396058863,1764751832134,-572.51641783,0.00017983,2]
[396058864,1764751832144,-572.51641783,0.00017983,2]
[396058865,1764751832155,-572.51641783,0.00017983,2]
[396058866,1764751832165,-572.51641783,0.00017983,2]
[396058867,1764751832175,-572.51641783,0.00017983,2]
[396058868,1764751832184,-572.51641783,0.00017983,2]
[396058869,1764751832194,-572.51641783,0.00017983,2]
[396058870,1764751832204,-572.51641783,0.00017983,2]
[396058871,1764751832214,-572.51641783,0.00017983,2]
[396058872,1764751832224,-572.51641783,0.00017983,2]
[396058873,1764751832233,-572.51641783,0.00017983,2]
[396058874,1764751832243,-572.51641783,0.00017983,2]
[396058875,1764751832253,-572.51641783,0.00017983,2]
[396058876,1764751832263,-572.51641783,0.00017983,2]
[396058877,1764751832272,-572.51641783,0.00017983,2]
[396058878,1764751832282,-572.51641783,0.00017983,2]
[396058879,1764751832291,-572.51641783,0.00017983,2]
[396058880,1764751832300,-572.51641783,0.00017983,2]
[396058881,1764751832309,-572.51641783,0.00017983,2]
[396058882,1764751832319,-572.51641783,0.00017983,2]
[396058883,1764751832329,-572.51641783,0.00017983,2]
[396058884,1764751832338,-572.51641783,0.00017983,2]
[396058885,1764751832348,-572.51641783,0.00017983,2]
[396058886,1764751832357,-572.51641783,0.00017983,2]
[396058887,1764751832367,-572.51641783,0.00017983,2]
[396058888,1764751832376,-572.51641783,0.00017983,2]
[396058889,1764751832385,-572.51641783,0.00017983,2]
[396058890,1764751832394,-572.51641783,0.00017983,2]
[396058891,1764751832405,-572.51641783,0.00017983,2]
[396058892,1764751832415,-572.51641783,0.00017983,2]
[396058893,1764751832425,-572.51641783,0.00017983,2]
[396058894,1764751832434,-572.51641783,0.00017983,2]
[396058895,1764751832444,-572.51641783,0.00017983,2]
[396058896,1764751832453,-572.51641783,0.00017983,2]
[396058897,1764751832463,-572.51641783,0.00017983,2]
[396058898,1764751832472,-572.51641783,0.00017983,2]
[396058899,1764751832481,-572.51641783,0.00017983,2]
[396058900,1764751832491,-2847.89593548,0.00017983,2]
[396058901,1764751832504,-2847.89593548,0.00017983,2]
[396058902,1764751832513,-2847.89593548,0.00017983,2]
[396058903,1764751832523,-2847.89593548,0.00017983,2]
[396058904,1764751832532,-2847.89593548,0.00017983,2]
[396058905,1764751832542,-2847.89593548,0.00017983,2]
[396058906,1764751832551,-2847.89593548,0.00017983,2]
[396058907,1764751832561,-2847.89593548,0.00017983,2]
[396058908,1764751832570,-2847.89593548,0.00017983,2]
[396058909,1764751832579,-2847.89593548,0.00017983,2]
[396058910,1764751832589,-2847.89593548,0.00017983,2]
[396058911,1764751832603,-2847.89593548,0.00017983,2]
[396058912,1764751832612,-2847.89593548,0.00017983,2]
[396058913,1764751832621,-2847.89593548,0.00017983,2]
[396058914,1764751832631,-2847.89593548,0.00017983,2]
[396058915,1764751832640,-2847.89593548,0.00017983,2]
[396058916,1764751832650,-2847.89593548,0.00017983,2]
[396058917,1764751832659,-2847.89593548,0.00017983,2]
[396058918,1764751832670,-2847.89593548,0.00017983,2]
[396058919,1764751832680,-2847.89593548,0.00017983,2]
[396058920,1764751832689,-2847.89593548,0.00017983,2]
[396058921,1764751832698,-2847.89593548,0.00017983,2]
[396058922,1764751832709,-2847.89593548,0.00017983,2]
[396058923,1764751832718,-2847.89593548,0.00017983,2]
[396058924,1764751832728,-2847.89593548,0.00017983,2]
[396058925,1764751832737,-2847.89593548,0.00017983,2]
[396058926,1764751832746,-2847.89593548,0.00017983,2]
[396058927,1764751832757,-2847.89593548,0.00017983,2]
[396058928,1764751832766,-2847.89593548,0.00017983,2]
[396058929,1764751832775,-2847.89593548,0.00017983,2]
[396058930,1764751832784,-2847.89593561,0.00017983,2]
[396058931,1764751832794,-191.12,0.00017986,2]
[396058932,1764751832803,-100000.0,0.0001799,2]
[396058933,1764751832813,-173.47575125,0.00018311,2]
[396058934,1764751832822,-204.0,0.00018406,2]
[396058935,1764751832832,-203.0,0.00018685,3]
[396058936,1764751832842,-346.97492544,0.00018971,2]
[396058937,1764751832852,-162.34794973,0.00018985,2]
[396058938,1764751832863,-314.32456214,0.00018985,2]
[396058939,1764751832873,-156.09420551,0.00018985,2]
[396058940,1764751832882,-280.96956991,0.00018985,2]
[396058941,1764751832892,-601.79,0.00019178,2]
[396058942,1764751832903,-150.0,0.00019178,2]
[396058943,1764751832914,-205.47139371,0.00019354,7]
[396058944,1764751832925,-500.0,0.00019573,2]
[396058945,1764751832935,-3868.76677474,0.00019573,2]
[396058946,1764751832944,-162.0,0.000196,5]
[396058947,1764751832955,-414.0,0.00019611,2]
[396058948,1764751832971,-4011.9111454,0.00019628,2]
[396058949,1764751832984,-4160.35185778,0.00019683,2]
[396058950,1764751832999,-1943.91,0.000197,2]
[396058951,1764751833013,-2179.81,0.000197,2]
[396058952,1764751833026,-27761.04617512,0.000197,3]
[396058953,1764751833039,-346.97492544,0.000197,3]
[396058954,1764751833054,-250.0,0.00019726,2]
[396058955,1764751833065,-4314.28487652,0.00019738,2]
[396058956,1764751833079,-4473.91341695,0.00019793,2]
[396058957,1764751833091,-4639.44821338,0.00019848,2]
[396058958,1764751833103,-3986.23779217,0.000199,2]
[396058959,1764751833114,-4811.10779728,0.00019903,2]
[396058960,1764751833127,-301.0,0.00019911,2]
[396058961,1764751833138,-4251.44074576,0.00019958,2]
[396058962,1764751833151,-2000.0,0.0002,7]
[396058963,1764751833163,-28783.10734878,0.0002,14]
[396058993,1764751837723,-300.0,0.00017702,2]
[396058995,1764751837735,-1749.7173321,0.00019998,2]
[396058998,1764751837748,-940.56169224,0.00019998,2]
[396059234,1764751840498,-7309.72097566,0.00019998,2]
[396059237,1764751840510,-42694.60892434,0.0002,14]
[396059780,1764751846018,-177984.92140554,0.0002,14]
[396074194,1764752462501,250.0,0.0002,30]
[396074240,1764752822758,2332.0,9.414e-05,2]
[396074246,1764752844980,472.08264181,9.414e-05,2]
[396074283,1764753009081,2560.0,9.414e-05,2]
[396074291,1764753031478,228.0,9.414e-05,2]
[396074293,1764753031766,-228.0,9.509e-05,2]
[396074294,1764753031776,-150.0,9.679e-05,2]
[396074295,1764753031785,-181.74475776,9.998e-05,2]
[396074296,1764753031797,-1018.25524224,9.998e-05,2]
[396074297,1764753031807,-300.0,9.999e-05,2]
[396074298,1764753031816,-300.0,9.999e-05,2]
[396074299,1764753031825,-201.60651591,9.999e-05,2]
[396074300,1764753031837,-98.39348409,9.999e-05,2]
[396074301,1764753031847,-458.86651591,0.0001,2]
[396074302,1764753031858,-465.60265351,0.0001,2]
[396074303,1764753031869,-6526.93011456,0.0001,2]
[396074323,1764753037933,-463.24944112,0.0001,2]
[396074325,1764753037944,-3951.4251707,0.0001,2]
[396074327,1764753037955,-300.0,0.0001,2]
[396074329,1764753037966,-488.57536421,0.0001,2]
[396074817,1764753042978,-596.16442264,0.0001,2]
[396074818,1764753042989,-1769.13533233,0.0001,2]
[396074819,1764753042999,-300.0,0.00010199,2]
[396074820,1764753043008,-300.0,0.00010199,2]
[396074821,1764753043019,-300.0,0.00010199,2]
[396074822,1764753043028,-300.0,0.00010199,2]
[396074823,1764753043037,-300.0,0.00010199,2]
[396074824,1764753043046,-300.0,0.00010199,2]
[396074825,1764753043055,-300.0,0.00010199,2]
[396074826,1764753043065,-300.0,0.00010199,2]
[396074827,1764753043074,-300.0,0.00010199,2]
[396074828,1764753043083,-300.0,0.00010199,2]
[396074829,1764753043092,-300.0,0.00010199,2]
[396074830,1764753043101,-300.0,0.00010199,2]
[396074831,1764753043110,-300.0,0.00010199,2]
[396074832,1764753043119,-300.0,0.00010199,2]
[396074833,1764753043128,-300.0,0.00010199,2]
[396074834,1764753043137,-167.01,0.00010199,2]
[396074835,1764753043146,-600.0,0.00010402,2]
[396074836,1764753043154,-720.0,0.00011442,2]
[396074837,1764753043163,-177.0,0.00011679,2]
[396074838,1764753043172,-78.91722767,0.00012586,2]
[396074839,1764753043183,-785.08277233,0.00012586,2]
[396074840,1764753043192,-204.0,0.00013679,2]
[396074841,1764753043202,-1122.496378,0.00013699,2]
[396074842,1764753043211,-500.0,0.00013742,2]
[396074843,1764753043220,-500.0,0.00013742,2]
[396074844,1764753043229,-500.0,0.00013742,2]
[396074845,1764753043238,-500.0,0.00013742,2]
[396074846,1764753043247,-500.0,0.00013742,2]
[396074848,1764753043257,-500.0,0.00013742,2]
[396074850,1764753043268,-500.0,0.00013742,2]
[396074852,1764753043277,-500.0,0.00013742,2]
[396074854,1764753043287,-500.0,0.00013742,2]
[396074856,1764753043297,-500.0,0.00013742,2]
[396074858,1764753043310,-500.0,0.00013742,2]
[396074860,1764753043319,-500.0,0.00013742,2]
[396074862,1764753043329,-500.0,0.00013742,2]
[396074864,1764753043338,-500.0,0.00013742,2]
[396074866,1764753043350,-500.0,0.00013742,2]
[396074868,1764753043359,-500.0,0.00013742,2]
[396074870,1764753043369,-500.0,0.00013742,2]
[396074872,1764753043379,-500.0,0.00013742,2]
[396074874,1764753043388,-500.0,0.00013742,2]
[396074876,1764753043398,-500.0,0.00013742,2]
[396074878,1764753043407,-500.0,0.00013742,2]
[396074880,1764753043416,-500.0,0.00013742,2]
[396074882,1764753043426,-435.33083232,0.00013742,2]
[396074884,1764753043435,-500.0,0.00013742,2]
[396074886,1764753043444,-500.0,0.00013742,2]
[396074888,1764753043454,-1000.0,0.00013845,2]
[396074890,1764753043463,-1000.0,0.0001523,2]
[396074891,1764753043473,-244.0,0.0001523,2]
[396074893,1764753043483,-260.0,0.00015288,3]
[396074895,1764753043492,-231.0,0.00015679,2]
[396074897,1764753043502,-160.0,0.00015794,2]
[396074899,1764753043511,-1000.0,0.00016752,2]
[396074902,1764753043521,-492.0,0.00016752,2]
[396074903,1764753043530,-151.0,0.0001688,2]
[396074905,1764753043540,-151.29482133,0.0001688,2]
[396074908,1764753043553,-151.0,0.0001688,2]
[396074909,1764753043563,-151.0,0.0001688,2]
[396074911,1764753043572,-151.0,0.0001688,2]
[396074913,1764753043582,-151.0,0.0001688,2]
[396074915,1764753043591,-151.0,0.0001688,2]
[396074917,1764753043600,-151.0,0.0001688,2]
[396074919,1764753043610,-151.0,0.0001688,2]
[396074921,1764753043619,-151.0,0.0001688,2]
[396074923,1764753043632,-151.0,0.0001688,2]
[396074925,1764753043643,-152.85641992,0.0001688,2]
[396074928,1764753043656,-10000.0,0.00016888,2]
[396074930,1764753043666,-500.0,0.00016889,2]
[396074932,1764753043676,-500.0,0.00016889,2]
[396074934,1764753043685,-500.0,0.00016889,2]
[396074936,1764753043695,-176.10114314,0.00016889,2]
[396074938,1764753043704,-62738.71179214,0.0001689,2]
[396074941,1764753043726,-11468.95755193,0.0001689,2]
[396074943,1764753043737,-32613.82357182,0.0001689,2]
[396075162,1764753045930,-2281.28905335,0.0001689,2]
[396075174,1764753046038,-1215.86785834,0.0001689,2]
[396090668,1764753422650,250.0,0.0002,30]
[396090892,1764754130745,-274.0,0.00014388,2]
[396090893,1764754130776,-274.0,0.00014533,2]
[396090894,1764754130807,-150.0,0.00014829,2]
[396090895,1764754130838,-274.0,0.00014978,2]
[396090896,1764754130866,-192.0,0.00015178,3]
[396090897,1764754130890,-346.97492544,0.00016775,2]
[396090898,1764754130919,-182.0,0.00016822,3]
[396090899,1764754130949,-177.0,0.00016829,2]
[396090900,1764754130973,-1200.0,0.00016879,2]
[396090901,1764754131000,-300.0,0.00016879,2]
[396090902,1764754131030,-151.0,0.0001688,2]
[396090903,1764754131056,-151.0,0.0001688,2]
[396090904,1764754131081,-151.0,0.0001688,2]
[396090905,1764754131107,-151.0,0.0001688,2]
[396090906,1764754131133,-151.0,0.0001688,2]
[396090907,1764754131163,-151.0,0.0001688,2]
[396090908,1764754131189,-154.59610482,0.0001688,2]
[396090909,1764754131216,-300.0,0.00017227,2]
[396090910,1764754131244,-300.0,0.00017227,2]
[396090911,1764754131272,-300.0,0.00017227,2]
[396090912,1764754131299,-300.0,0.00017227,2]
[396090913,1764754131326,-300.0,0.00017227,2]
[396090914,1764754131355,-300.0,0.00017227,2]
[396090915,1764754131383,-300.0,0.00017227,2]
[396090916,1764754131411,-300.0,0.00017227,2]
[396090917,1764754131439,-300.0,0.00017227,2]
[396090918,1764754131466,-300.0,0.00017227,2]
[396090919,1764754131493,-300.0,0.00017227,2]
[396090920,1764754131521,-300.0,0.00017227,2]
[396090921,1764754131548,-300.0,0.00017227,2]
[396090922,1764754131574,-300.0,0.00017227,2]
[396090923,1764754131600,-300.0,0.00017227,2]
[396090924,1764754131632,-600.0,0.00017571,2]
[396090925,1764754131657,-1435.631486,0.00018,2]
[396090926,1764754131683,-1000.0,0.000185,2]
[396090927,1764754131709,-2579.17784983,0.00018735,2]
[396090928,1764754131737,-204.0,0.00018829,2]
[396090929,1764754131764,-267.81701208,0.00018985,2]
[396090930,1764754131791,-462.54124149,0.00018985,2]
[396090931,1764754131817,-532.30745064,0.00019,2]
[396090932,1764754131843,-1000.0,0.00019,2]
[396090933,1764754131870,-184.0,0.00019014,3]
[396090934,1764754131896,-150.0,0.00019178,2]
[396090935,1764754131921,-2674.60743027,0.00019283,2]
[396090936,1764754131949,-720.0,0.00019328,10]
[396090937,1764754131975,-1000.0,0.00019384,5]
[396090938,1764754132004,-164.7869226,0.00019388,2]
[396090940,1764754132038,-3627.138943,0.00019427,2]
[396090942,1764754132064,-1000.0,0.000195,2]
[396090943,1764754132090,-4721.32979419,0.00019517,2]
[396090944,1764754132122,-500.0,0.00019519,2]
[396090946,1764754132150,-500.0,0.00019519,2]
[396090947,1764754132179,-173.27080019,0.00019519,2]
[396090949,1764754132207,-500.0,0.00019519,2]
[396090950,1764754132234,-381.70342581,0.00019519,2]
[396090951,1764754132261,-500.0,0.00019519,2]
[396090953,1764754132290,-890000.0,0.0001952,2]
[396090954,1764754132315,-289.0,0.00019521,2]
[396090955,1764754132340,-375.0,0.0001968,2]
[396090957,1764754132365,-9914.65,0.000197,3]
[396090959,1764754132389,-346.97492544,0.000197,3]
[396090960,1764754132414,-2000.0,0.00019707,7]
[396090961,1764754132438,-150.0,0.00019707,7]
[396090963,1764754132463,-150.0,0.00019707,7]
[396090964,1764754132487,-250.0,0.00019726,2]
[396090966,1764754132512,-2773.56790519,0.00019831,2]
[396090967,1764754132537,-160.0,0.00019838,2]
[396090968,1764754132565,-100000.0,0.0001999,2]
[396090969,1764754132590,-293479.78592134,0.0002,14]
[396090970,1764754132619,-372242.4145,0.0002,18]
[396090971,1764754132645,-211828.0,0.0002,19]
[396090972,1764754132673,-120000.0,0.0002,7]
[396090977,1764754133055,-346.97492544,0.0002,7]
[396090978,1764754133081,-1364.97,0.0002,2]
[396090979,1764754133103,-726.78515,0.0002,2]
[396090980,1764754133127,-1717.86,0.0002,2]
[396090982,1764754133150,-1749.52,0.0002,2]
[396090983,1764754133174,-1961.83,0.0002,2]
[396090984,1764754133204,-150.0,0.0002,2]
[396090986,1764754133227,-300.0,0.0002,2]
[396090987,1764754133252,-1000.0,0.0002,2]
[396090994,1764754133542,431.0,0.00019884,2]
[396091036,1764754136477,770.98171005,0.0002,2]
[396091240,1764754232066,-316.0,0.00019178,2]
[396091241,1764754232077,-150.0,0.00019178,2]
[396091242,1764754232087,-229.55500946,0.00019181,2]
[396091243,1764754232097,-150.0,0.00019281,2]
[396091244,1764754232107,-1000.0,0.00019384,5]
[396091245,1764754232117,-229.55500944,0.00019408,2]
[396091246,1764754232127,-211.74428061,0.00019626,3]
[396091247,1764754232138,-229.55500944,0.00019634,2]
[396091248,1764754232148,-250.0,0.00019726,2]
[396091251,1764754232156,-211.74428061,0.00019756,3]
[396091253,1764754232166,-229.55500944,0.00019861,2]
[396091255,1764754232176,-211.74428061,0.00019886,3]
[396091256,1764754232186,-1122.496378,0.00019986,2]
[396091257,1764754232196,-229.55500944,0.00020087,2]
[396091258,1764754232206,-261.94190954,0.00020175,2]
[396091259,1764754232215,-1122.496378,0.00020187,2]
[396091260,1764754232225,-336.43959473,0.00020218,2]
[396091261,1764754232234,-350.0,0.00020274,2]
[396091263,1764754232243,-414.0,0.0002029,2]
[396091264,1764754232252,-450.0,0.00020822,2]
[396091265,1764754232262,-1408.7633861,0.0002097,2]
[396091266,1764754232272,-19309.24436197,0.0002104,3]
[396091267,1764754232283,-1276.04,0.0002104,3]
[396091268,1764754232294,-1165.4489358,0.0002104,3]
[396091280,1764754238013,-568.04179401,0.0002104,3]
[396091281,1764754238121,-1336.524237,0.0002104,3]
[396091283,1764754238134,-360.82507419,0.0002104,3]
[396091284,1764754238146,-424.50976335,0.0002104,3]
[396091496,1764754240252,-155.13013463,0.00020889,2]
[396091498,1764754240262,-4804.37105397,0.0002104,3]
[396091501,1764754240273,-8754.99477971,0.0002104,3]
[396091503,1764754240282,-346.97492544,0.0002104,3]
[396091528,1764754240450,-32296.11983572,0.0002107,3]
[396091532,1764754240530,-346.97492544,0.0002107,3]
[396091534,1764754240540,-155.13013463,0.000211,2]
[396091536,1764754240549,-188.0,0.00021205,4]
[396091538,1764754240559,-864.0,0.0002126,10]
[396091540,1764754240568,-177.0,0.00021281,2]
[396091542,1764754240578,-550.0,0.0002137,2]
[396091544,1764754240586,-1408.76338608,0.00021435,2]
[396091546,1764754240596,-300.0,0.0002146,10]
[396091548,1764754240605,-300.0,0.0002146,10]
[396091550,1764754240615,-300.0,0.0002146,10]
[396091552,1764754240625,-300.0,0.0002146,10]
[396091554,1764754240634,-300.0,0.0002146,10]
[396091556,1764754240644,-300.0,0.0002146,10]
[396091558,1764754240656,-300.0,0.0002146,10]
[396091560,1764754240666,-300.0,0.0002146,10]
[396091562,1764754240676,-300.0,0.0002146,10]
[396091564,1764754240685,-300.0,0.0002146,10]
[396091566,1764754240695,-300.0,0.0002146,10]
[396091568,1764754240704,-300.0,0.0002146,10]
[396091570,1764754240714,-300.0,0.0002146,10]
[396091572,1764754240725,-300.0,0.0002146,10]
[396091575,1764754240734,-300.0,0.0002146,10]
[396091576,1764754240743,-592.139859,0.00021533,15]
[396091578,1764754240752,-160.0,0.00021783,2]
[396091580,1764754240762,-155.13013463,0.00021861,17]
[396091583,1764754240773,-401.0,0.00021888,120]
[396091585,1764754240782,-259.01418662,0.0002189,10]
[396091587,1764754240793,-346.97492544,0.0002189,10]
[396091589,1764754240803,-401.0,0.00021898,120]
[396091590,1764754240814,-3587.61401298,0.000219,2]
[396091592,1764754240825,-1408.76338608,0.000219,2]
[396091594,1764754240835,-1574.56,0.000219,2]
[396091597,1764754240845,-401.0,0.00021908,120]
[396091599,1764754240855,-500.0,0.00021917,2]
[396091601,1764754240865,-150.0,0.00021918,2]
[396091603,1764754240877,-650.0,0.00021918,2]
[396091604,1764754240886,-23007.66029043,0.0002199,10]
[396091818,1764754243153,-295.54,0.00021863,15]
[396091820,1764754243163,-20908.64970957,0.0002199,10]
[396091822,1764754243173,-35360.25897862,0.00022,2]
[396091907,1764754243964,-447997.77102138,0.00022,2]
[396091909,1764754243973,-1546.08,0.00022,2]
[396091911,1764754243983,-1228.47,0.00022,14]
[396091913,1764754243992,-771.0,0.000221,2]
[396091915,1764754244001,-260.0,0.00022331,2]
[396091917,1764754244010,-300.0,0.00022466,2]
[396091919,1764754244021,-750.0,0.00022466,2]
[396091921,1764754244031,-155.13013463,0.00022622,32]
[396091923,1764754244040,-332.91781483,0.00022712,2]
[396091924,1764754244049,-174.01142482,0.00022806,2]
[396091926,1764754244062,-360.0,0.00022879,2]
[396091928,1764754244071,-206.84017951,0.00022968,30]
[396091930,1764754244080,-1661.31,0.00023,30]
[396091932,1764754244089,-500.0,0.00023,2]
[396091934,1764754244098,-500.0,0.00023,2]
[396091936,1764754244107,-500.0,0.00023,2]
[396091938,1764754244116,-500.0,0.00023,2]
[396091940,1764754244125,-500.0,0.00023,2]
[396091942,1764754244134,-500.0,0.00023,10]
[396091944,1764754244143,-500.0,0.00023,2]
[396091946,1764754244153,-500.0,0.00023,2]
[396091948,1764754244162,-500.0,0.00023,2]
[396091950,1764754244172,-500.0,0.00023,2]
[396091952,1764754244181,-450.0,0.00023014,2]
[396091954,1764754244191,-850.0,0.00023014,2]
[396091956,1764754244201,-204.0,0.00023281,2]
[396091958,1764754244210,-414.0,0.0002329,2]
[396091960,1764754244221,-155.13013463,0.00023383,48]
[396091962,1764754244230,-1000.0,0.00023386,10]
[396091964,1764754244239,-191.0,0.00023397,10]
[396091966,1764754244247,-460.0,0.00023427,2]
[396091968,1764754244257,-483358.03,0.000235,2]
[396091970,1764754244267,-600.0,0.00023562,2]
[396091972,1764754244276,-950.0,0.00023562,2]
[396091974,1764754244285,-152.67558357,0.00023566,30]
[396091976,1764754244305,-1546.08,0.000236,2]
[396091978,1764754244320,-1574.56,0.000236,7]
[396091980,1764754244329,-1228.47,0.000237,14]
[396091982,1764754244339,-16996.55,0.00023842,3]
[396091984,1764754244348,-560.0,0.00023975,2]
[396091986,1764754244357,-500.0,0.00024,9]
[396091988,1764754244366,-22089.04840656,0.00024,60]
[396091990,1764754244376,-500.0,0.00024,9]
[396091992,1764754244385,-1522.49982233,0.00024,2]
[396091994,1764754244394,-750.0,0.0002411,2]
[396091996,1764754244403,-1050.0,0.0002411,2]
[396091998,1764754244412,-510054.56379304,0.00024142,2]
[396092000,1764754244421,-605.194053,0.00024142,2]
[396092002,1764754244431,-605.194053,0.00024142,2]
[396092004,1764754244440,-605.194053,0.00024142,2]
[396092006,1764754244450,-605.194053,0.00024142,2]
[396092008,1764754244459,-155.13013463,0.00024144,63]
[396092010,1764754244469,-660.0,0.00024523,2]
[396092012,1764754244478,-346.97492544,0.000246,3]
[396092014,1764754244487,-16996.54,0.000246,3]
[396092016,1764754244496,-106355.79531499,0.0002465,2]
[396092196,1764754246404,-601.76327176,0.0002136,2]
[396092198,1764754246413,-370.06983,0.00021863,15]
[396092200,1764754246422,-356.71893155,0.000219,2]
[396104752,1764754383025,250.0,0.0002,30]
[396106230,1764755342693,250.0,0.0002,30]
[396106366,1764755438303,-1010.24674,0.00013562,2]
[396106367,1764755438313,-1010.24674,0.00013699,2]
[396106368,1764755438322,-263.0,0.00013699,2]
[396106369,1764755438332,-397.59391676,0.00015302,2]
[396106370,1764755438341,-150.0,0.00015587,2]
[396106371,1764755438351,-243.0,0.00015616,3]
[396106372,1764755438360,-177.0,0.00017587,2]
[396106373,1764755438369,-182.0,0.00017989,2]
[396106374,1764755438379,-500.0,0.00017989,2]
[396106375,1764755438388,-321.28956014,0.00017989,2]
[396106376,1764755438397,-100000.0,0.0001799,2]
[396106377,1764755438406,-1000.0,0.00018379,2]
[396106378,1764755438415,-367208.10685079,0.0001889,2]
[396106379,1764755438427,-214972.61956334,0.0001889,2]
[396106380,1764755438438,-45559.22602047,0.0001889,2]
[396106381,1764755438448,-532.60310158,0.0001889,2]
[396106831,1764755443357,-346.97492544,0.00018787,2]
[396106833,1764755443367,-23670.31152587,0.0001889,2]
[396106839,1764755443410,-1874.46960627,0.0001889,2]
[396107120,1764755446362,-2732.30630634,0.0001889,2]
[396107122,1764755446373,-2545.4000002,0.0001889,2]
[396107123,1764755446415,-29391.68015384,0.0001889,2]
[396107124,1764755446426,-581.50000002,0.0001889,2]
[396107126,1764755446472,-48277.48791731,0.0001889,2]
[396107128,1764755446481,-150.0,0.00019178,2]
[396107130,1764755446490,-1236.86,0.000192,2]
[396107132,1764755446499,-13304.21856058,0.0001942,2]
[396121373,1764756302935,250.0,0.0002,30]
[396121404,1764756632416,-177.0,0.00014986,3]
[396121405,1764756632426,-150.0,0.0001515,2]
[396121406,1764756632435,-145.09174381,0.00015303,2]
[396121407,1764756632469,-4.90825619,0.00015303,2]
[396121408,1764756632478,-277.0,0.00015303,2]
[396121409,1764756632487,-177.0,0.00017303,2]
[396121410,1764756632497,-170.0,0.00018822,3]
[396121411,1764756632506,-500.0,0.00018989,2]
[396121412,1764756632515,-346.97492544,0.00018999,2]
[396121413,1764756632526,-150.0,0.00019178,2]
[396121414,1764756632535,-204.0,0.00019303,2]
[396121415,1764756632544,-250.0,0.00019726,2]
[396121416,1764756632553,-3173.74657516,0.000198,2]